{"text_format":"3","workbook":"xlsx","n_sheets":2,"sheets":["المصروفات","الفئة"],"not_rendered":{"defined_names":5},"read":"whole","date_system":"1900"}

{"sheet":"المصروفات","index":0,"n_rows":25,"n_cols":7,"rows_kept":25,"merged":[[0,1,0,5],[1,1,1,6]]}
[null,"موازنة المصروفات",{"$nulls":4},{"$f":"TODAY()","v":"2018-06-28"}]
[null,"اسم الشركة"]
[null,"المصروفات","الفئة","الموازنة","الفعلي","الفرق (ر.س)","الفرق (%)"]
[null,"الإعلانات","التشغيل",null,null,{"$f":"IFERROR(SUM(المصروفات[الموازنة]-المصروفات[الفعلي]), \"\")","v":0},{"$f":"IFERROR(SUM(المصروفات[الفرق (ر.س)]/المصروفات[الموازنة]),\"\")","v":""}]
[null,"الديون","التشغيل",null,null,{"$f":"IFERROR(SUM(المصروفات[الموازنة]-المصروفات[الفعلي]), \"\")","v":0},{"$f":"IFERROR(SUM(المصروفات[الفرق (ر.س)]/المصروفات[الموازنة]),\"\")","v":""}]
[null,"الفوائد","التشغيل",null,null,{"$f":"IFERROR(SUM(المصروفات[الموازنة]-المصروفات[الفعلي]), \"\")","v":0},{"$f":"IFERROR(SUM(المصروفات[الفرق (ر.س)]/المصروفات[الموازنة]),\"\")","v":""}]
[null,"الموارد","التشغيل",null,null,{"$f":"IFERROR(SUM(المصروفات[الموازنة]-المصروفات[الفعلي]), \"\")","v":0},{"$f":"IFERROR(SUM(المصروفات[الفرق (ر.س)]/المصروفات[الموازنة]),\"\")","v":""}]
[null,"رسوم الإرسال بالبريد","التشغيل",null,null,{"$f":"IFERROR(SUM(المصروفات[الموازنة]-المصروفات[الفعلي]), \"\")","v":0},{"$f":"IFERROR(SUM(المصروفات[الفرق (ر.س)]/المصروفات[الموازنة]),\"\")","v":""}]
[null,"الإيجار أو الرهن","التشغيل",null,null,{"$f":"IFERROR(SUM(المصروفات[الموازنة]-المصروفات[الفعلي]), \"\")","v":0},{"$f":"IFERROR(SUM(المصروفات[الفرق (ر.س)]/المصروفات[الموازنة]),\"\")","v":""}]
[null,"مصاريف المبيعات","التشغيل",null,null,{"$f":"IFERROR(SUM(المصروفات[الموازنة]-المصروفات[الفعلي]), \"\")","v":0},{"$f":"IFERROR(SUM(المصروفات[الفرق (ر.س)]/المصروفات[الموازنة]),\"\")","v":""}]
[null,"الضرائب","التشغيل",null,null,{"$f":"IFERROR(SUM(المصروفات[الموازنة]-المصروفات[الفعلي]), \"\")","v":0},{"$f":"IFERROR(SUM(المصروفات[الفرق (ر.س)]/المصروفات[الموازنة]),\"\")","v":""}]
[null,"الأدوات المساعدة","التشغيل",null,null,{"$f":"IFERROR(SUM(المصروفات[الموازنة]-المصروفات[الفعلي]), \"\")","v":0},{"$f":"IFERROR(SUM(المصروفات[الفرق (ر.س)]/المصروفات[الموازنة]),\"\")","v":""}]
[null,"أخرى","التشغيل",null,null,{"$f":"IFERROR(SUM(المصروفات[الموازنة]-المصروفات[الفعلي]), \"\")","v":0},{"$f":"IFERROR(SUM(المصروفات[الفرق (ر.س)]/المصروفات[الموازنة]),\"\")","v":""}]
[null,"التأمين","التشغيل",null,null,{"$f":"IFERROR(SUM(المصروفات[الموازنة]-المصروفات[الفعلي]), \"\")","v":0},{"$f":"IFERROR(SUM(المصروفات[الفرق (ر.س)]/المصروفات[الموازنة]),\"\")","v":""}]
[null,"الفائدة","التشغيل",null,null,{"$f":"IFERROR(SUM(المصروفات[الموازنة]-المصروفات[الفعلي]), \"\")","v":0},{"$f":"IFERROR(SUM(المصروفات[الفرق (ر.س)]/المصروفات[الموازنة]),\"\")","v":""}]
[null,"الهاتف","التشغيل",null,null,{"$f":"IFERROR(SUM(المصروفات[الموازنة]-المصروفات[الفعلي]), \"\")","v":0},{"$f":"IFERROR(SUM(المصروفات[الفرق (ر.س)]/المصروفات[الموازنة]),\"\")","v":""}]
[null,"الصيانة والإصلاحات","التشغيل",null,null,{"$f":"IFERROR(SUM(المصروفات[الموازنة]-المصروفات[الفعلي]), \"\")","v":0},{"$f":"IFERROR(SUM(المصروفات[الفرق (ر.س)]/المصروفات[الموازنة]),\"\")","v":""}]
[null,"الرسوم القانونية","التشغيل",null,null,{"$f":"IFERROR(SUM(المصروفات[الموازنة]-المصروفات[الفعلي]), \"\")","v":0},{"$f":"IFERROR(SUM(المصروفات[الفرق (ر.س)]/المصروفات[الموازنة]),\"\")","v":""}]
[null,"الإهلاك","التشغيل",null,null,{"$f":"IFERROR(SUM(المصروفات[الموازنة]-المصروفات[الفعلي]), \"\")","v":0},{"$f":"IFERROR(SUM(المصروفات[الفرق (ر.س)]/المصروفات[الموازنة]),\"\")","v":""}]
[null,"الشحن","التشغيل",null,null,{"$f":"IFERROR(SUM(المصروفات[الموازنة]-المصروفات[الفعلي]), \"\")","v":0},{"$f":"IFERROR(SUM(المصروفات[الفرق (ر.س)]/المصروفات[الموازنة]),\"\")","v":""}]
[null,"التخزين","التشغيل",null,null,{"$f":"IFERROR(SUM(المصروفات[الموازنة]-المصروفات[الفعلي]), \"\")","v":0},{"$f":"IFERROR(SUM(المصروفات[الفرق (ر.س)]/المصروفات[الموازنة]),\"\")","v":""}]
[null,"المتجر","شخصي",null,null,{"$f":"IFERROR(SUM(المصروفات[الموازنة]-المصروفات[الفعلي]), \"\")","v":0},{"$f":"IFERROR(SUM(المصروفات[الفرق (ر.س)]/المصروفات[الموازنة]),\"\")","v":""}]
[null,"مندوبو المبيعات","شخصي",null,null,{"$f":"IFERROR(SUM(المصروفات[الموازنة]-المصروفات[الفعلي]), \"\")","v":0},{"$f":"IFERROR(SUM(المصروفات[الفرق (ر.س)]/المصروفات[الموازنة]),\"\")","v":""}]
[null,"أخرى","شخصي",null,null,{"$f":"IFERROR(SUM(المصروفات[الموازنة]-المصروفات[الفعلي]), \"\")","v":0},{"$f":"IFERROR(SUM(المصروفات[الفرق (ر.س)]/المصروفات[الموازنة]),\"\")","v":""}]
[null,"إجمالي المصروفات",null,{"$f":"IFERROR(SUM(المصروفات[الموازنة]), \"\")","v":0},{"$f":"IFERROR(SUM(المصروفات[الفعلي]), \"\")","v":0},{"$f":"IFERROR(SUM(المصروفات[الفرق (ر.س)]), \"\")","v":0},{"$f":"IFERROR(SUM(المصروفات[[#Totals],[الفرق (ر.س)]]/المصروفات[[#Totals],[الموازنة]]),\"\")","v":""}]

{"sheet":"الفئة","index":1,"n_rows":4,"n_cols":2,"rows_kept":4}
[null,"البحث عن فئة"]
[null,"الفئة"]
[null,"التشغيل"]
[null,"شخصي"]